Cogmind - Beta 11.2 @@@ ROGUE MODE // 2022.12.30 @ 01:17:33 // Winter2022/Polymind Player: Daniexpert Result: Destroyed by B-75 Beast with Heavy Plasma Cannon Performance ------------- Evolutions (3) 1500 Regions Visited (12) 2400 Robots Destroyed (52) 260 Value Destroyed (2108) 2108 Prototype IDs (215) 4300 Alien Tech Used (0) 0 Bonus (10125) 10125 TOTAL SCORE: 20383 Bonus ------- Polymind Skill 5995 Pacifist 200 High Alert Combat Kills 391 Follower Combat Kills 239 Met Data Miner 300 Used Data Conduit 3000 Cogmind --------- Core Integrity 0/700 Matter 100/100 Energy 745/775 System Corruption 0% Temperature Warm (103) Movement Walking (120) Location -6/Proximity Caves Parts ------- > --- POWER (1) -------- Antimatter Reactor > --- PROPULSION (2) --- Enhanced Flexi-carbon Leg Enhanced Flexi-carbon Leg > --- UTILITY (7) ------ Advanced Heat Sink Advanced Heat Sink Advanced Energy Well Advanced Particle Charger Layered Medium Armor Plating Experimental Thermal Shield > --- WEAPON (1) ------- Neutron Cannon > --- INVENTORY (1) ---- Advanced Heat Sink Peak State ------------ > --- POWER ------------ Heavy Deuterium Engine > --- PROPULSION ------- Combat Antigrav System > --- UTILITY ---------- Advanced Launcher Guidance Computer Improved Target Analyzer Experimental Core Analyzer Improved Armor Integrity Analyzer EX Chip 1 EX Chip 1 EX Chip 1 EX Chip 1 EX Chip 1 EX Chip 1 EX Chip 1 EX Chip 1 EX Chip 1 EX Chip 1 EX Chip 2 EX Chip 2 EX Chip 2 EX Chip 2 EX Chip 2 EX Chip 2 EX Chip 2 EX Chip 2 > --- WEAPON ----------- AWS/EX-DEC > --- INVENTORY -------- Deploy-a-Sentry [Rating: 99] Favorites ----------- Power Improved Deuterium Engine Engine Improved Deuterium Engine Reactor Antimatter Reactor Propulsion Light Treads Treads Light Treads Leg Enhanced Flexi-carbon Leg Wheel Wheel Hover Unit Combat Antigrav System Flight Unit Flight Unit Utility EX Chip 1 Device Improved Heat Sink Storage Advanced Energy Well Processor Advanced Launcher Guidance Computer Hackware EX Chip 1 Protection Improved Light Armor Plating Weapon Gatling Laser Energy Gun Gatling Laser Energy Cannon Neutron Cannon Ballistic Gun Flak Gun Special Weapon Mining Laser Build | -11 -10 -10 -9 -9 -9 -8 -8 -7 -7 -7 -7 -6 ------- Run | Scr Mat Min Mat Min Exi Min Mat Fac Low Low Dat Pro Slots Evolved . | . . . . . . . . . . . . . Power . | . . . . . . . . . . . . . Propulsion . | . . . . . . . . . . . . . Utility . | . . . . . . . . . . . . . Weapon . | . . . . . . . . . . . . . Parts Attached . | . . . . . . . . . . . . . Power . | . . . . . . . . . . . . . Engine . | . . . . . . . . . . . . . Core . | . . . . . . . . . . . . . Reactor . | . . . . . . . . . . . . . Propulsion . | . . . . . . . . . . . . . Treads . | . . . . . . . . . . . . . Leg . | . . . . . . . . . . . . . Wheel . | . . . . . . . . . . . . . Hover . | . . . . . . . . . . . . . Flight . | . . . . . . . . . . . . . Utility . | . . . . . . . . . . . . . Device . | . . . . . . . . . . . . . Storage . | . . . . . . . . . . . . . Processor . | . . . . . . . . . . . . . Hackware . | . . . . . . . . . . . . . Protection . | . . . . . . . . . . . . . Artifact . | . . . . . . . . . . . . . Weapon . | . . . . . . . . . . . . . Energy Gun . | . . . . . . . . . . . . . Energy Cannon . | . . . . . . . . . . . . . Ballistic Gun . | . . . . . . . . . . . . . Ballistic Cannon . | . . . . . . . . . . . . . Launcher . | . . . . . . . . . . . . . Special Weapon . | . . . . . . . . . . . . . Impact Weapon . | . . . . . . . . . . . . . Slashing Weapon . | . . . . . . . . . . . . . Piercing Weapon . | . . . . . . . . . . . . . Special Melee Weapon . | . . . . . . . . . . . . . Unidentified Prototypes . | . . . . . . . . . . . . . Parts Lost 13 | . . . . . . . 1 2 . 6 4 . Power . | . . . . . . . . . . . . . Propulsion 2 | . . . . . . . . . . 2 . . Utility 8 | . . . . . . . 1 1 . 2 4 . Weapon 3 | . . . . . . . . 1 . 2 . . Highest Loss Streak 6 | . . . . . . . 1 2 . 6 4 . To Critical Strikes . | . . . . . . . . . . . . . Average Slot Usage (%) 92 | . 100 100 100 80 98 96 93 92 100 100 51 97 Engine 8 | . 16 16 16 14 14 3 3 4 12 12 4 . Treads 8 | . . . . . . . . 9 25 25 . . Leg 1 | . . . . . . . . . . . 8 18 Wheel 5 | . 33 33 33 20 . . . . . . . . Flight 1 | . . . . 9 25 . . . . . . . Device 18 | . 33 33 33 20 . . . 9 25 25 22 42 Processor 4 | . . . . . 7 15 15 9 . . . . Hackware 19 | . . . . . 34 69 66 40 . . . . Protection 5 | . . . . . . . . 4 12 12 3 9 Energy Gun 5 | . . . . . 1 3 3 6 12 12 . . Ballistic Gun 4 | . . . . 4 12 . . 4 12 12 . . Special Weapon 2 | . 16 16 16 9 . . . . . . . . Naked Turns 117 | . . . . 61 2 . . . . . 54 . Heaviest Build 46 | 6 6 6 6 6 21 21 21 23 23 23 46 46 Greatest Support 56 | 20 20 20 20 20 21 21 21 40 40 40 56 56 Greatest Overweight (x) 3 | . . . . . . . . . . 3 3 . Average Overweight (x) . | . . . . . . . . . . . 1 . Largest Inventory Capacity 1 | . . . . . 1 1 1 1 1 1 1 1 Average Capacity . | . . . . . . 1 1 1 1 1 . 1 Most Carried 1 | . . . . . 1 1 1 1 1 1 1 1 Average Carried . | . . . . . . 1 . . 1 1 . 1 Final Capacity 1 | . . . . . 1 1 1 1 1 1 1 1 Final Carried 1 | . . . . . 1 1 . 1 1 1 1 1 Class Distribution -------------------- 39% | Sentry 29% | Tinkerer 16% | Tunneler 9% | Grunt 3% | Cogmind Dominant Class ---------------- Tunneler | -10/Materials Tunneler | -10/Mines Tunneler | -9/Materials Tunneler | -9/Mines Swarmer | -9/Exiles Tinkerer | -8/Mines Tinkerer | -8/Materials Tinkerer | -7/Factory Sentry | -7/Lower Caves Sentry | -7/Lower Caves Grunt | -7/Data Miner Grunt | -6/Proximity Caves Resources | -11 -10 -10 -9 -9 -9 -8 -8 -7 -7 -7 -7 -6 ----------- Run | Scr Mat Min Mat Min Exi Min Mat Fac Low Low Dat Pro Matter Collected 110 | . . . . . . . . 95 10 5 . . Remotely . | . . . . . . . . . . . . . Salvage Created 1766 | . . . . . . 234 711 636 1 . 184 . Parts 129 | . . . . . . 18 70 37 . . 4 . Haulers Intercepted . | . . . . . . . . . . . . . Recyclers Shooed 1 | . . . . . . . . 1 . . . . Parts Field Recycled . | . . . . . . . . . . . . . Retrieved Matter . | . . . . . . . . . . . . . Parts Self-Destructed 9 | . . . . . . . . . 9 . . . Prevented . | . . . . . . . . . . . . . Kills | -11 -10 -10 -9 -9 -9 -8 -8 -7 -7 -7 -7 -6 ------- Run | Scr Mat Min Mat Min Exi Min Mat Fac Low Low Dat Pro Combat Hostiles Destroyed 47 | . . . . . . 9 23 12 . . 3 . Guns 40 | . . . . . . 9 22 9 . . . . Cannons 3 | . . . . . . . . . . . 3 . AOE 2 | . . . . . . . . 2 . . . . Classes Destroyed 12 | . . . . . . 2 8 1 1 . . . Builder 1 | . . . . . . . 1 . . . . . Operator 1 | . . . . . . . 1 . . . . . Watcher 3 | . . . . . . . 3 . . . . . Swarmer 11 | . . . . . . 6 5 . . . . . Cutter 3 | . . . . . . . 3 . . . . . Grunt 18 | . . . . . . 3 8 7 . . . . Duelist 1 | . . . . . . . 1 . . . . . Protector 1 | . . . . . . . 1 . . . . . Sentry 8 | . . . . . . . 4 4 . . . . Hunter 1 | . . . . . . . 1 . . . . . Programmer 1 | . . . . . . . . 1 . . . . Enhanced Grunt 3 | . . . . . . . . . . . 3 . Tinkerer 1 | . . . . . . . . . 1 . . . Best Kill Streak 14 | . . . . . . 3 14 5 . . 1 . Combat Bots Only 13 | . . . . . . 3 13 5 . . 1 . Max Kills in Single Turn 2 | . . . . . . 1 2 2 1 . 1 . Gunslinging . | . . . . . . . . . . . . . Exploded 2 | . . . . . . . . 2 . . . . Melee . | . . . . . . . . . . . . . Uniques/NPCs Destroyed . | . . . . . . . . . . . . . Combat | -11 -10 -10 -9 -9 -9 -8 -8 -7 -7 -7 -7 -6 -------- Run | Scr Mat Min Mat Min Exi Min Mat Fac Low Low Dat Pro Damage Taken 3466 | . . . 13 90 . 87 272 736 4 509 1095 660 Core 812 | . . . . 45 . 22 39 230 . 90 243 143 Absorbed by Shields . | . . . . . . . . . . . . . Core Remaining (%) 93 | 100 . 100 . . . 83 92 . . . . . Volleys Fired 71 | . . 2 . . . . . 17 2 2 33 15 Largest 2 | . . 1 . . . . . 2 2 2 1 1 Hottest 108 | . . 100 . . . . . 108 108 108 90 90 Shots Fired 209 | . . 2 . . . 14 79 58 4 4 33 15 Gun 159 | . . . . . . 14 79 58 4 4 . . Cannon 48 | . . . . . . . . . . . 33 15 Launcher . | . . . . . . . . . . . . . Special 2 | . . 2 . . . . . . . . . . Kinetic 21 | . . . . . . . . 17 2 2 . . Thermal 71 | . . 2 . . . . . 17 2 2 33 15 Explosive . | . . . . . . . . . . . . . Electromagnetic 117 | . . . . . . 14 79 24 . . . . Robot Hit Streak 24 | . . . . . . 24 16 13 19 1 9 7 Robot Miss Streak 6 | . . . . . . 1 5 6 1 4 1 1 Penetration Max . | . . . . . . . . . . . . . Secondary Targets . | . . . . . . . . . . . . . Autonomous 117 | . . . . . . 14 79 24 . . . . Shots Hit Robots 185 | . . . . . . 14 72 55 4 1 26 13 Core Hits 132 | . . . . . . 13 46 51 6 1 13 2 Critical Kills . | . . . . . . . . . . . . . Critical Parts Destroyed . | . . . . . . . . . . . . . Critical Strikes 13 | . . . . . . 3 8 2 . . . . Corrupt 13 | . . . . . . 3 8 2 . . . . Melee Attacks . | . . . . . . . . . . . . . Impact . | . . . . . . . . . . . . . Slashing . | . . . . . . . . . . . . . Piercing . | . . . . . . . . . . . . . Sneak Attacks . | . . . . . . . . . . . . . Combat Hostiles . | . . . . . . . . . . . . . Follow-up Attacks . | . . . . . . . . . . . . . Damage Inflicted 4890 | . . . . . . 410 1489 1233 110 12 885 751 Guns 3128 | . . . . . . 410 1478 1122 106 12 . . Cannons 1566 | . . . . . . . . . . . 815 751 Explosions 174 | . . . . . . . . 109 . . 65 . Melee . | . . . . . . . . . . . . . Ramming 22 | . . . . . . . 11 2 4 . 5 . Kinetic 357 | . . . . . . . . 283 62 12 . . Thermal 2195 | . . . . . . . . 520 44 . 880 751 Explosive . | . . . . . . . . . . . . . Electromagnetic 2316 | . . . . . . 410 1478 428 . . . . Impact . | . . . . . . . . . . . . . Slashing . | . . . . . . . . . . . . . Piercing . | . . . . . . . . . . . . . Highest Corruption . | . . . . . . . . . . . . . Average Corruption . | . . . . . . . . . . . . . Corruption Purged . | . . . . . . . . . . . . . Corruption Blocked . | . . . . . . . . . . . . . Overload Shots . | . . . . . . . . . . . . . Overflow Damage 8 | . . . . . . . . . . . 8 . Projectiles 8 | . . . . . . . . . . . 8 . Explosions . | . . . . . . . . . . . . . Melee . | . . . . . . . . . . . . . Knockbacks . | . . . . . . . . . . . . . Impact . | . . . . . . . . . . . . . Kinetic . | . . . . . . . . . . . . . Secondary . | . . . . . . . . . . . . . Self-Inflicted Damage 72 | . . . . . . . 5 1 4 . 62 . Shots 1 | . . . . . . . . . . . 1 . Rammed 5 | . . . . . . . 2 2 . . 1 . Targets Rammed 5 | . . . . . . . 2 2 . . 1 . Kicked . | . . . . . . . . . . . . . Crushed . | . . . . . . . . . . . . . Highest Temperature 231 | . . 80 . 4 . 3 2 93 6 6 96 231 Average Temperature 56 | . . 42 . 4 . 3 2 42 4 4 51 114 Received Heat Transfer 633 | . . . . 24 . 27 72 327 . 51 . 132 Effects 3 | . . . . . . . . . . . . 3 Interference 3 | . . . . . . . . . . . . 3 Siege Activations . | . . . . . . . . . . . . . Robots Corrupted 3 | . . . . . . . 2 1 . . . . Combat Hostiles 2 | . . . . . . . 1 1 . . . . Parts Fried 12 | . . . . . . 2 9 1 . . . . Impact Corruptions . | . . . . . . . . . . . . . Robots Melted . | . . . . . . . . . . . . . Combat Hostiles . | . . . . . . . . . . . . . Parts Melted 2 | . . . . . . . . 2 . . . . Heat Transferred 1150 | . . . . . . . . 1000 100 . 50 . Parts Sabotaged . | . . . . . . . . . . . . . Parts Stolen . | . . . . . . . . . . . . . Parts Stripped . | . . . . . . . . . . . . . Power Chain Reactions 2 | . . . . . . . . 1 . . 1 . Missiles Intercepted . | . . . . . . . . . . . . . Alert | -11 -10 -10 -9 -9 -9 -8 -8 -7 -7 -7 -7 -6 ------- Run | Scr Mat Min Mat Min Exi Min Mat Fac Low Low Dat Pro Peak Influence 1079 | . 114 50 108 227 . 210 1079 728 . . . . Initial 467 | . . 44 19 47 . . 81 467 . . . . Average 359 | . 26 46 47 78 . 105 711 552 . . . . Maximum Alert Level 3 | . . . . 1 . 1 3 3 . . . . Low Security (%) 48 | 100 100 100 100 97 . 82 9 . . . . . Level 1 7 | . . . . 2 . 17 19 . . . . . Level 2 23 | . . . . . . . 4 87 . . . . Level 3 20 | . . . . . . . 65 12 . . . . Level 4 . | . . . . . . . . . . . . . Level 5 . | . . . . . . . . . . . . . High Security . | . . . . . . . . . . . . . Max Security . | . . . . . . . . . . . . . Squads Dispatched 11 | . . . . . . . 6 5 . . . . Investigation 2 | . . . . . . . 1 1 . . . . Extermination 1 | . . . . . . . . 1 . . . . Reinforcement 2 | . . . . . . . 2 . . . . . Assault 2 | . . . . . . . 2 . . . . . Garrison 4 | . . . . . . . 1 3 . . . . Intercept . | . . . . . . . . . . . . . Searches Triggered . | . . . . . . . . . . . . . Construction Impeded . | . . . . . . . . . . . . . Haulers Reinforced . | . . . . . . . . . . . . . Active Scanning Responses . | . . . . . . . . . . . . . Cargo Convoy Interrupts . | . . . . . . . . . . . . . Stealth | -11 -10 -10 -9 -9 -9 -8 -8 -7 -7 -7 -7 -6 --------- Run | Scr Mat Min Mat Min Exi Min Mat Fac Low Low Dat Pro Distress Signals 2 | . 1 . . . . . 1 . . . . . Communications Jammed . | . . . . . . . . . . . . . Distress Signals . | . . . . . . . . . . . . . Times Spotted 104 | . 3 . 1 13 1 7 39 17 . 13 9 1 Peak Tracking Total 12 | . 3 . 1 6 . 3 6 4 . 12 4 1 Tactical Retreats 9 | . . . . 4 . . 3 1 . 1 . . Traps | -11 -10 -10 -9 -9 -9 -8 -8 -7 -7 -7 -7 -6 ------- Run | Scr Mat Min Mat Min Exi Min Mat Fac Low Low Dat Pro Traps Triggered 1 | . . . . . . . . 1 . . . . Indirectly . | . . . . . . . . . . . . . Trap Hack Attempts . | . . . . . . . . . . . . . Triggered . | . . . . . . . . . . . . . Disarmed . | . . . . . . . . . . . . . Reprogrammed . | . . . . . . . . . . . . . Reused . | . . . . . . . . . . . . . Traps Extracted . | . . . . . . . . . . . . . Installed . | . . . . . . . . . . . . . Triggered 5 | . . . . . . . 2 3 . . . . Machines | -11 -10 -10 -9 -9 -9 -8 -8 -7 -7 -7 -7 -6 ---------- Run | Scr Mat Min Mat Min Exi Min Mat Fac Low Low Dat Pro Machines Disabled 2 | . . . . . . . 2 . . . . . Max in Single Turn 1 | . . . . . . . 1 . . . . . Garrison Access 1 | . . . . . . . 1 . . . . . Machines Sabotaged . | . . . . . . . . . . . . . Garrisons Compromised . | . . . . . . . . . . . . . Overloaded Fab Kills . | . . . . . . . . . . . . . Hacking | -11 -10 -10 -9 -9 -9 -8 -8 -7 -7 -7 -7 -6 --------- Run | Scr Mat Min Mat Min Exi Min Mat Fac Low Low Dat Pro Machines Accessed 5 | . 2 . 2 1 . . . . . . . . Terminals 4 | . 2 . 2 . . . . . . . . . Fabricators . | . . . . . . . . . . . . . Repair Stations . | . . . . . . . . . . . . . Recycling Units . | . . . . . . . . . . . . . Scanalyzers . | . . . . . . . . . . . . . Garrison Access . | . . . . . . . . . . . . . Total Hacks 12 | . 4 . 7 1 . . . . . . . . Successful 9 | . 3 . 5 1 . . . . . . . . Failed 3 | . 1 . 2 . . . . . . . . . Catastrophic 1 | . . . 1 . . . . . . . . . Database Lockouts . | . . . . . . . . . . . . . Manual 5 | . 1 . 4 . . . . . . . . . Terminals 11 | . 4 . 7 . . . . . . . . . Fabricators . | . . . . . . . . . . . . . Repair Stations . | . . . . . . . . . . . . . Recycling Units . | . . . . . . . . . . . . . Scanalyzers . | . . . . . . . . . . . . . Garrison Access . | . . . . . . . . . . . . . Terminal Hacks 9 | . 3 . 5 1 . . . . . . . . Robot Analysis 1 | . 1 . . . . . . . . . . . Open Door 1 | . . . . 1 . . . . . . . . Level Access Points 1 | . . . 1 . . . . . . . . . Branch Access Points 2 | . 1 . 1 . . . . . . . . . Locate Traps 1 | . 1 . . . . . . . . . . . Surveillance Status 1 | . . . 1 . . . . . . . . . Zone Layout 2 | . . . 2 . . . . . . . . . Fabricator Hacks . | . . . . . . . . . . . . . Repair Station Hacks . | . . . . . . . . . . . . . Recycling Unit Hacks . | . . . . . . . . . . . . . Scanalyzer . | . . . . . . . . . . . . . Garrison Access Hacks . | . . . . . . . . . . . . . Unauthorized Hacks . | . . . . . . . . . . . . . Terminals . | . . . . . . . . . . . . . Fabricators . | . . . . . . . . . . . . . Repair Stations . | . . . . . . . . . . . . . Recycling Units . | . . . . . . . . . . . . . Scanalyzers . | . . . . . . . . . . . . . Garrison Access . | . . . . . . . . . . . . . Data Cores Recovered 1 | . . . . . . . 1 . . . . . Used . | . . . . . . . . . . . . . Hacking Detections 3 | . 1 . 2 . . . . . . . . . Full Trace Events . | . . . . . . . . . . . . . Feedback Events . | . . . . . . . . . . . . . Feedback Blocked . | . . . . . . . . . . . . . Robot Schematics Acquired . | . . . . . . . . . . . . . Robots Built . | . . . . . . . . . . . . . Authchips . | . . . . . . . . . . . . . Time . | . . . . . . . . . . . . . Total Robot Build Rating . | . . . . . . . . . . . . . Part Schematics Acquired . | . . . . . . . . . . . . . Parts Built . | . . . . . . . . . . . . . Authchips . | . . . . . . . . . . . . . Time . | . . . . . . . . . . . . . Total Part Build Rating . | . . . . . . . . . . . . . Parts Repaired . | . . . . . . . . . . . . . Time . | . . . . . . . . . . . . . Parts Recycled . | . . . . . . . . . . . . . Recycled Matter . | . . . . . . . . . . . . . Retrieved Matter . | . . . . . . . . . . . . . Retrieved Components . | . . . . . . . . . . . . . Parts Scanalyzed . | . . . . . . . . . . . . . Part Schematics Acquired . | . . . . . . . . . . . . . Parts Damaged . | . . . . . . . . . . . . . Bothacking | -11 -10 -10 -9 -9 -9 -8 -8 -7 -7 -7 -7 -6 ------------ Run | Scr Mat Min Mat Min Exi Min Mat Fac Low Low Dat Pro Used RIF Installer . | . . . . . . . . . . . . . Robots Hacked 2 | . . . . 1 . . . 1 . . . . Non-combat . | . . . . . . . . . . . . . Combat 2 | . . . . 1 . . . 1 . . . . Robot Hacks Applied 3 | . . . . 1 . . . 2 . . . . find_shortcuts 2 | . . . . 1 . . . 1 . . . . find_garrison 1 | . . . . . . . . 1 . . . . Relay Couplers Released 2 | . . . . . . . 2 . . . . . Machine Destruction 2 | . . . . . . . 2 . . . . . Fabnet Peak Effective % . | . . . . . . . . . . . . . Robots Rewired . | . . . . . . . . . . . . . Allies Hacked . | . . . . . . . . . . . . . Hacks Repelled . | . . . . . . . . . . . . . Allies | -11 -10 -10 -9 -9 -9 -8 -8 -7 -7 -7 -7 -6 -------- Run | Scr Mat Min Mat Min Exi Min Mat Fac Low Low Dat Pro Total Allies . | . . . . . . . . . . . . . Largest Group . | . . . . . . . . . . . . . Highest-Rated Group . | . . . . . . . . . . . . . Highest-Rated Ally . | . . . . . . . . . . . . . Total Orders . | . . . . . . . . . . . . . Ally Attacks 20 | . . . . . . . 20 . . . . . Total Damage 1097 | . . . . . . . 1097 . . . . . Kills 9 | . . . . . . . 9 . . . . . Allies Corrupted . | . . . . . . . . . . . . . Allies Melted 1 | . . . . . . . 1 . . . . . Turrets Deployed 1 | . . . . . . . 1 . . . . . Intel | -11 -10 -10 -9 -9 -9 -8 -8 -7 -7 -7 -7 -6 ------- Run | Scr Mat Min Mat Min Exi Min Mat Fac Low Low Dat Pro Robot Analysis Total 132 | 1 1 . . 1 . . . 1 . . 128 . Derelict Logs Recovered 3 | . . 1 . 1 . . . . 1 . . . Drone Launches . | . . . . . . . . . . . . . Drone Recoveries . | . . . . . . . . . . . . . Exploration | -11 -10 -10 -9 -9 -9 -8 -8 -7 -7 -7 -7 -6 ------------- Run | Scr Mat Min Mat Min Exi Min Mat Fac Low Low Dat Pro Turns Passed 3849 | 15 49 326 49 311 83 247 542 511 617 576 310 213 Spaces Moved 3484 | 22 62 382 62 513 164 273 545 432 360 357 165 147 Core 253 | 13 . . . 120 5 . . . . 1 114 . Treads 799 | . . . . . . . . 83 360 356 . . Legs 198 | . . . . . . . . . . . 51 147 Wheels 757 | 9 62 382 62 242 . . . . . . . . Hover 1217 | . . . . . 50 273 545 349 . . . . Flight 260 | . . . . 151 109 . . . . . . . Fastest Speed 37 | 50 80 80 80 37 37 80 80 80 160 160 50 120 Average Speed 97 | 62 80 80 80 60 50 80 80 95 160 160 124 120 Slowest Speed 200 | 80 80 80 80 80 80 80 80 160 160 200 200 120 Overloaded Moves . | . . . . . . . . . . . . . Propulsion Burnouts . | . . . . . . . . . . . . . Robots Hopped 6 | . . . . 6 . . . . . . . . Cave-ins Triggered . | . . . . . . . . . . . . . Exploration Rate (%) 43 | 3 16 47 11 80 59 63 39 11 63 58 82 31 Regions Visited 12 Branch Regions 8 Pre-discovered Areas 25 | . . . . . . . . . . . 25 . Known Exits Taken 4 | . 1 . 1 . . 1 . . 1 . . . Unknown Exits Taken 8 | 1 . 1 . 1 1 . 1 1 . 1 1 . Scrap Searched 10 | . . 2 . 1 . 1 . . 3 2 . 1 Spaces Dug 2 | . . 2 . . . . . . . . . . Terrain Destroyed 12 | . . 2 . . . . . 5 . . 4 1 Melee . | . . . . . . . . . . . . . Projectile 7 | . . 2 . . . . . . . . 4 1 AOE 5 | . . . . . . . . 5 . . . . Terrain Rammed 1 | . . . . . . . . . 1 . . . Walls Destroyed . | . . . . . . . . . . . . . Machines Disabled . | . . . . . . . . . . . . . Actions | -11 -10 -10 -9 -9 -9 -8 -8 -7 -7 -7 -7 -6 --------- Run | Scr Mat Min Mat Min Exi Min Mat Fac Low Low Dat Pro Total 3808 | 23 61 396 61 507 163 301 651 494 396 358 230 167 Wait 249 | . . 2 . 1 . 29 104 43 34 . 31 5 Move 3460 | 21 61 381 61 500 163 272 544 431 359 356 164 147 Hop 6 | . . . . 6 . . . . . . . . Pick Up 2 | . . . . . . . . 1 . . 1 . Fast Attach . | . . . . . . . . . . . . . Attach . | . . . . . . . . . . . . . Detach . | . . . . . . . . . . . . . Swap . | . . . . . . . . . . . . . Drop 1 | . . . . . . . 1 . . . . . Fire 71 | . . 2 . . . . . 17 2 2 33 15 Melee . | . . . . . . . . . . . . . Ram 6 | . . . . . . . 2 2 1 . 1 . Kick . | . . . . . . . . . . . . . Crush . | . . . . . . . . . . . . . Escape Stasis . | . . . . . . . . . . . . . Rewire . | . . . . . . . . . . . . . Trap . | . . . . . . . . . . . . . Miscellaneous 13 | 2 . 11 . . . . . . . . . . Route ------- -11/Scrapyard -10/Materials -10/Mines -9/Materials (discovered 7 exits: Mat x3 / *Min x2 / Sto x2) -9/Mines (discovered 3 exits: *Mat x2 / *Exi) -9/Exiles -8/Mines -8/Materials -7/Factory (discovered 2 exits: [*Low x2]) -7/Lower Caves -7/Lower Caves (discovered 2 exits: [*Fac] / [*Dat]) -7/Data Miner -6/Proximity Caves History --------- Turn | Location | Event 3 | -11/Scrapyard | Discovered new exit (range 15) 16 | -11/Scrapyard | Entered Materials 45 | -10/Materials | Identified exit to Mines 65 | -10/Materials | Entered Mines 94 | -10/Mines | Discovered new exit (range 10) 184 | -10/Mines | Learned Materials stockpile data 391 | -10/Mines | Entered Materials 404 | -9/Materials | Identified exit to Mines 404 | -9/Materials | Identified exit to Storage 414 | -9/Materials | Identified exit to Materials 440 | -9/Materials | Entered Mines 461 | -9/Mines | Discovered exit to Materials (range 14) 618 | -9/Mines | Discovered exit to Materials (range 8) 732 | -9/Mines | Learned Materials terminal intel 749 | -9/Mines | Deemed a non-threat by the Exiles lab entrance 749 | -9/Mines | Discovered new exit (range 5) 751 | -9/Mines | Entered Exiles 761 | -9/Exiles | Met 8R-AWN 766 | -9/Exiles | Met EX-HEX 778 | -9/Exiles | Met EX-BIN 789 | -9/Exiles | Met EX-DEC 794 | -9/Exiles | Took control of EX-DEC (ally) 824 | -9/Exiles | Discovered new exit (range 14) 834 | -9/Exiles | Left Exiles lab with Deploy-a-Sentry 834 | -9/Exiles | Entered Mines 962 | -8/Mines | Discovered exit to Materials (range 14) 1081 | -8/Mines | Entered Materials 1082 | -8/Materials | Loaded intel: 12 terminal locations 1185 | -8/Materials | Garrison activated, responded to threat 1254 | -8/Materials | DAS Turret deployed 1317 | -8/Materials | Destroyed 13 combat bots 1336 | -8/Materials | Discovered new exit (range 10) 1481 | -8/Materials | First assault squad dispatched 1623 | -8/Materials | Entered Factory 1788 | -7/Factory | Discovered new exit (range 8) 1845 | -7/Factory | Discovered new exit (range 15) 1881 | -7/Factory | Garrison activated, responded to threat 2134 | -7/Factory | Entered Lower Caves 2275 | -7/Lower Caves | Identified exit to Lower Caves 2396 | -7/Lower Caves | Encountered a Warlord checkpoint 2751 | -7/Lower Caves | Entered another Lower Caves area 2791 | -7/Lower Caves | Discovered new exit (range 7) 2862 | -7/Lower Caves | Spotted B-75 Beast 3295 | -7/Lower Caves | Discovered new exit (range 14) 3327 | -7/Lower Caves | Entered Data Miner 3327 | -7/Data Miner | Discovered new exit (range 6) 3358 | -7/Data Miner | Lost 6 parts (2n2u2w) 3365 | -7/Data Miner | Met Data Miner 3417 | -7/Data Miner | Received God Mode back door access code from Data Miner 3459 | -7/Data Miner | Interfaced with the Data Conduit 3465 | -7/Data Miner | Core integrity fell below 50% 3582 | -7/Data Miner | Core integrity fell below 20% 3589 | -7/Data Miner | Lost 4 parts (4u) 3637 | -7/Data Miner | Entered Proximity Caves 3766 | -6/Proximity Caves | Spotted B-75 Beast 3850 | -6/Proximity Caves | Destroyed by B-75 Beast with Heavy Plasma Cannon Last Messages --------------- 03556_ Lyr. Medium Armor Plating destroyed. 03556_ Acquired 1 Protomatter. 03558_ Adv. Heat Sink destroyed. 03570_ Released control of Enhanced Grunt. 03572_ Took control of Enhanced Grunt. 03581_ Destroyed Neutron Cannon. 03586_ Enhanced Grunt destroyed. 03607_ Acquired Adv. Heat Sink. LOCATION=UNKNOWN GOAL=ESCAPE 03719_ Searching scrap... 03719_ Found Enh. Flamer. 03719_ Found 26 Matter. 03719_ Found 40 Matter. 03794_ Adv. Heat Sink blasted off. 03821_ Knocked back. 03827_ Overheating: System interference. 03827_ Neutron Cannon temporarily disabled. 03827_ Adv. Heat Sink temporarily disabled. 03827_ Knocked back. Map ----- +----------------------------------------------------+ | ?????????????????????????????????????????????????? | | ?????????????????????????????????????????????????? | | ?????????????????????????????????????????????????? | | ?????????????????????????????????????????????????? | | ?????????????????????????????????????????????????? | | ?????????????????????????????????????????????????? | | ?????????????????????????????????????????????????? | | ?????????????????????????????????????????????????? | | ?????????????????????????????????????????????????? | | ?????????????????????????????????????????????????? | | ?????????????????????????????????????????????????? | | ????????????? ???????????????????????????????????? | | ????????????" ?????????????????????????????????? | | ????????? ?"" ?????????????????????????????????? | | ????????? "" ##???????????????????????????????? | | ?????????? " ????####???????????????????????? | | ????????? ???##;;##??????????????????????? | | ??????????""" ???# ;#?????????????????????? | | ?????????? ??## % %#?????????????????????? | | ???????????"" ### ##?????????????????????? | | ??????????""" ;#?????????????????????? | | ????????? % #?????????????????????? | | ????????? # #?????????????????????? | | ??????????? ????## %##?????????????????????? | | ?????????????????# % #??????????????????????? | | ????????????????#; !;; g#??????????????????????? | | ????????###?????##BB;;;;###??????????????????????? | | ???????## ##?????#BB;#???????????????????????????? | | ???????# ##????# #????????????????????????????? | | ????????# ###### #######??????????????????????? | | ???????## ## % #??????????????????????? | | ?????### #??????????????????????? | | ?????# ### ###??????????????????????? | | ?????## ### ####????????????????????????? | | ####?## #???????????????????????????? | | ### ##??????????????????????????? | | #?# #### ####???????????????????????? | | #?## #?# ##??????????????????????? | | #??### ### #?????????????????????? | | ##????### ## ??????????????????????? | | ####????# ## ### #?????????????????????? | | #???## ######? #??# #?????????????????????? | | ## ##### ##????? ???# #?????????????????????? | | ## ## #????? #???#??????????????????????? | | ### # # #?????# ##??????????????????????????? | | #### # #??????###???????????????????????????? | | ?# #####????????????????????????????????????? | | # #????????????????????????????????????????? | | # ##????????????????????????????????????????? | | #?????????????????????????????????????????? | +----------------------------------------------------+ Best States ------------- Heat Dissipation 72 Energy Generation 31 Energy Capacity 775 Matter Stores 100 Matter Capacity 100 Sight Range 16 Terrain Scan Range 16 Terrain Scan Density 10 Armor Coverage 225 Resistance: TH 30 Resistance: EX 50 Resistance: EM 90 Resistance: I 25 Evasion (%) 62 Launcher Accuracy 40 Target Analysis 6 Core Analysis 8 Armor Integrity Analysis 40 Recoil Reduction 2 Particle Charging 25 Offensive Hacking 70 Defensive Hacking 56 Item Schematics ----------------- None Robot Schematics ------------------ None Fabricated ------------ Nothing Alien Tech Used ----------------- None Achievements -------------- Unlimited Data Challenges ------------ None Polymind | -11 -10 -10 -9 -9 -9 -8 -8 -7 -7 -7 -7 -6 ---------- Run | Scr Mat Min Mat Min Exi Min Mat Fac Low Low Dat Pro Hosts 6 | 1 . . . 1 1 . . 1 . . 2 . Combat Hostiles 4 | . . . . 1 . . . 1 . . 2 . Allies 1 | . . . . . 1 . . . . . . . Unique Host Classes 5 | 1 . . . 1 1 . . 1 . . 1 . Average Host Suspicion 53 | . 41 40 37 60 . 99 96 79 2 71 . 39 Unsuspicious Activity 553 | 12 . 55 . . 16 . . . 20 . 450 . Returns to Shadow . | . . . . . . . . . . . . . Fuzzy Dispatches . | . . . . . . . . . . . . . Protomatter Created 594 | . . . . 25 . 47 270 89 9 . 154 . Used 335 | 5 . . . 6 33 . . 51 . . 240 . Decayed 25 | . . . . 25 . . . . . . . . Highest Spend 120 | 5 . . . 6 33 . . 51 . . 120 . Top 5 Hosts by Kills: EX-DEC (-9/Exiles: 38) Y-54 Guardian (-7/Factory: 6) Enhanced Grunt (-7/Data Miner: 2) Enhanced Grunt (-7/Data Miner: 1) Game ------ Seed SingularityDecoderSegregator Manual? 0 Play Time 00:27:45 Cumulative 177.0 hours Start 2022.12.30 @ 00:51:27 End 2022.12.30 @ 01:17:33 Sessions 1 Manual Loads 0 Difficulty Rogue Special Mode Winter2022/Polymind Game No. 104 Rogue 104 Adventurer 0 Explorer 0 Win Type - Total 4 Types 3/0/1/0/0/0/0/0/0 Lore% 55 Gallery% 69 Achievement% 62 Wizard Run 0 Options --------- ASCII 0 Keyboard 1 Movement Numpad Keybinds 0 Fullscreen 2 Font 18/Smallcaps Map View 76x50 Tactical HUD 1 Map Filters NONE Filters NONE Steam 1 RUN: a8aa735e-5cbc-4f23-a733-7166711a7984